fUSD/lending_fUSD_20260127
["ID","MTS","AMOUNT","RATE_DAILY","PERIOD"]
[403801738,1769545623264,-500.0,0.00043367,120]
[403801739,1769545623329,-500.0,0.00043367,120]
[403801740,1769545623394,-510.51643322,0.00043367,120]
[403801741,1769545623457,-537.29137729,0.00043367,120]
[403801742,1769545623520,-202.45842153,0.00043367,120]
[403801743,1769545623585,-553.59109522,0.00043367,120]
[403801744,1769545623650,-551.81829921,0.00043367,120]
[403801745,1769545623716,-500.0,0.00043367,120]
[403801746,1769545623780,-500.0,0.00043367,120]
[403801747,1769545623846,-500.0,0.00043367,120]
[403801748,1769545623912,-516.89346373,0.00043367,120]
[403801749,1769545623978,-500.0,0.00043367,120]
[403801750,1769545624043,-500.0,0.00043367,120]
[403801751,1769545624107,-500.0,0.00043367,120]
[403801752,1769545624173,-546.29463006,0.00043367,120]
[403801753,1769545624240,-500.0,0.00043367,120]
[403801754,1769545624305,-511.23073921,0.00043367,120]
[403801755,1769545624370,-505.88638904,0.00043367,120]
[403801756,1769545624437,-296.1270334,0.00043367,120]
[403801757,1769545624500,-500.0,0.00043367,120]
[403801758,1769545624565,-500.0,0.00043367,120]
[403801759,1769545624630,-500.0,0.00043367,120]
[403801760,1769545624696,-508.81597097,0.00043367,120]
[403801761,1769545624763,-505.61768269,0.00043367,120]
[403801762,1769545624830,-500.0,0.00043367,120]
[403801763,1769545624897,-500.0,0.00043367,120]
[403801764,1769545624967,-462.31036714,0.00043367,120]
[403801765,1769545625036,-515.28056009,0.00043367,120]
[403801766,1769545625105,-214.91657264,0.00043367,120]
[403801767,1769545625175,-500.0,0.00043367,90]
[403801768,1769545625241,-500.0,0.00043367,120]
[403801769,1769545625311,-500.0,0.00043367,90]
[403801770,1769545625378,-503.86453341,0.00043367,120]
[403801771,1769545625443,-500.0,0.00043367,120]
[403801772,1769545625509,-203.82073528,0.00043367,120]
[403801773,1769545625573,-500.0,0.00043367,120]
[403801774,1769545625639,-540.45694957,0.00043367,120]
[403801775,1769545625706,-502.38349826,0.00043367,120]
[403801776,1769545625773,-500.0,0.00043367,120]
[403801777,1769545625842,-500.0,0.00043367,120]
[403801778,1769545625907,-500.0,0.00043367,120]
[403801779,1769545625969,-542.93909548,0.00043367,90]
[403801780,1769545626034,-525.74048298,0.00043367,120]
[403801781,1769545626101,-153.95116681,0.00043367,30]
[403801782,1769545626166,-524.41741765,0.00043367,120]
[403801783,1769545626234,-171.46637596,0.00043367,120]
[403801784,1769545626298,-500.0,0.00043367,120]
[403801785,1769545626364,-539.28762701,0.00043367,120]
[403801786,1769545626430,-500.0,0.00043367,120]
[403801787,1769545626494,-261.98693063,0.00043367,120]
[403801788,1769545626559,-500.0,0.00043367,120]
[403801789,1769545626623,-500.0,0.00043367,120]
[403801790,1769545626689,-535.34579662,0.00043367,120]
[403801791,1769545627041,-500.0,0.00043367,120]
[403801792,1769545627107,-545.87405726,0.00043367,120]
[403801793,1769545627174,-500.0,0.00043367,120]
[403801794,1769545627240,-500.0,0.00043367,120]
[403801795,1769545627305,-500.0,0.00043367,120]
[403801796,1769545627370,-500.0,0.00043367,120]
[403801797,1769545627434,-500.0,0.00043367,120]
[403801798,1769545627498,-500.0,0.00043367,120]
[403801799,1769545627562,-500.0,0.00043367,120]
[403801800,1769545627627,-500.0,0.00043367,120]
[403801801,1769545627694,-500.0,0.00043367,120]
[403801802,1769545627760,-500.0,0.00043367,120]
[403801803,1769545627828,-500.0,0.00043367,120]
[403801804,1769545627892,-503.87859194,0.00043367,120]
[403801805,1769545627955,-646.96497855,0.00043367,120]
[403801806,1769545628020,-540.59328571,0.00043367,120]
[403801807,1769545628085,-500.0,0.00043367,120]
[403801808,1769545628151,-522.07420195,0.00043367,120]
[403801809,1769545628219,-500.0,0.00043367,120]
[403801810,1769545628293,-500.0,0.00043367,120]
[403801811,1769545628360,-608.06339422,0.00043367,120]
[403801812,1769545628427,-500.0,0.00043367,120]
[403801813,1769545628493,-521.80251181,0.00043367,120]
[403801814,1769545628558,-352.53227512,0.00043367,120]
[403801815,1769545628626,-500.0,0.00043367,120]
[403801816,1769545628694,-438.63280934,0.00043367,120]
[403801817,1769545628760,-533.44690326,0.00043367,120]
[403801818,1769545628827,-500.0,0.00043367,120]
[403801819,1769545628891,-517.0061815,0.00043367,120]
[403801820,1769545628961,-500.0,0.00043367,120]
[403801821,1769545629027,-500.0,0.00043367,120]
[403801822,1769545629093,-240.35229253,0.00043367,120]
[403801823,1769545629158,-524.82994068,0.00043367,120]
[403801824,1769545629222,-500.0,0.00043367,120]
[403801825,1769545629294,-500.0,0.00043367,120]
[403801826,1769545629360,-525.77517035,0.00043367,120]
[403801827,1769545629425,-500.0,0.00043367,120]
[403801828,1769545629489,-504.30854238,0.00043367,120]
[403801829,1769545629552,-504.09861874,0.00043367,120]
[403801830,1769545629616,-511.71629073,0.00043367,120]
[403801831,1769545629688,-500.0,0.00043367,120]
[403801832,1769545629752,-507.0993788,0.00043367,120]
[403801833,1769545629817,-502.48024122,0.00043367,120]
[403801834,1769545629883,-500.0,0.00043367,120]
[403801835,1769545629949,-500.0,0.00043367,120]
[403801836,1769545630012,-500.0,0.00043367,120]
[403801837,1769545630074,-537.34651116,0.00043367,120]
[403801838,1769545630139,-500.0,0.00043367,120]
[403801839,1769545630198,-500.0,0.00043367,120]
[403801840,1769545630260,-527.16180773,0.00043367,120]
[403801841,1769545630324,-423.46083487,0.00043367,120]
[403801842,1769545630388,-500.0,0.00043367,120]
[403801843,1769545630451,-500.0,0.00043367,120]
[403801844,1769545630515,-506.73435851,0.00043367,120]
[403801845,1769545630578,-538.74312064,0.00043367,120]
[403801846,1769545630642,-376.57864576,0.00043367,120]
[403801847,1769545630708,-500.0,0.00043367,120]
[403801848,1769545630771,-500.0,0.00043367,120]
[403801849,1769545630835,-547.83522736,0.00043367,120]
[403801850,1769545630898,-505.9591417,0.00043367,120]
[403801851,1769545630962,-500.0,0.00043367,120]
[403801852,1769545631026,-532.98244543,0.00043367,120]
[403801853,1769545631090,-500.0,0.00043367,120]
[403801854,1769545631153,-500.0,0.00043367,120]
[403801855,1769545631216,-504.89270784,0.00043367,120]
[403801856,1769545631280,-500.0,0.00043367,120]
[403801857,1769545631341,-545.20903912,0.00043367,120]
[403801858,1769545631415,-500.0,0.00043367,120]
[403801859,1769545631479,-517.66803601,0.00043367,120]
[403801860,1769545631541,-500.0,0.00043367,120]
[403801861,1769545631605,-500.0,0.00043367,120]
[403801862,1769545631671,-543.49790789,0.00043367,120]
[403801863,1769545631737,-500.0,0.00043367,120]
[403801864,1769545631802,-500.0,0.00043367,120]
[403801865,1769545631867,-223.16157647,0.00043367,120]
[403801866,1769545631932,-500.0,0.00043367,120]
[403801867,1769545631996,-511.20373353,0.00043367,120]
[403801868,1769545632059,-500.0,0.00043367,120]
[403801869,1769545632123,-174.44779601,0.00043367,120]
[403801870,1769545632187,-511.53635104,0.00043367,120]
[403801871,1769545632250,-500.0,0.00043367,120]
[403801872,1769545632316,-500.0,0.00043367,120]
[403801873,1769545632379,-500.0,0.00043367,120]
[403801874,1769545632443,-500.0,0.00043367,120]
[403801875,1769545632507,-185.27764555,0.00043367,120]
[403801876,1769545632575,-500.0,0.00043367,120]
[403801877,1769545632641,-326.72288006,0.00043367,120]
[403801878,1769545632705,-525.88366834,0.00043367,120]
[403801879,1769545632771,-295.10694113,0.00043367,120]
[403801880,1769545632837,-511.60474082,0.00043367,120]
[403801881,1769545632905,-228.69657264,0.00043367,120]
[403801882,1769545632969,-500.0,0.00043367,120]
[403801883,1769545633035,-228.69657264,0.00043367,120]
[403801884,1769545633098,-500.0,0.00043367,120]
[403801885,1769545633161,-500.0,0.00043367,120]
[403801886,1769545633575,-228.69657264,0.00043367,120]
[403801887,1769545633643,-552.27606468,0.00043367,120]
[403801888,1769545633712,-500.0,0.00043367,120]
[403801889,1769545633779,-562.28,0.00043367,120]
[403801890,1769545633843,-500.0,0.00043367,120]
[403801891,1769545633908,-500.0,0.00043367,120]
[403801892,1769545633974,-500.0,0.00043367,120]
[403801893,1769545634040,-500.0,0.00043367,120]
[403801894,1769545634103,-504.38856243,0.00043367,120]
[403801895,1769545634167,-502.43212763,0.00043367,120]
[403801896,1769545634230,-202.80226508,0.00043367,120]
[403801897,1769545634297,-500.0,0.00043367,120]
[403801898,1769545634363,-500.0,0.00043367,120]
[403801899,1769545634427,-500.0,0.00043367,120]
[403801900,1769545634492,-524.90349918,0.00043367,120]
[403801901,1769545634556,-521.8773285,0.00043367,120]
[403801902,1769545634624,-500.0,0.00043367,120]
[403801903,1769545634695,-500.0,0.00043367,120]
[403801904,1769545634761,-500.0,0.00043367,120]
[403801905,1769545634827,-500.0,0.00043367,120]
[403801906,1769545634894,-270.34918973,0.00043367,120]
[403801907,1769545634960,-540.07222489,0.00043367,120]
[403801908,1769545635028,-500.0,0.00043367,120]
[403801909,1769545635096,-229.1394594,0.00043367,120]
[403801910,1769545635162,-518.02881332,0.00043367,120]
[403801911,1769545635225,-500.0,0.00043367,120]
[403801912,1769545635298,-519.70335983,0.00043367,120]
[403801913,1769545635365,-500.0,0.00043367,120]
[403801914,1769545635432,-500.0,0.00043367,120]
[403801915,1769545635496,-500.0,0.00043367,120]
[403801916,1769545635560,-500.0,0.00043367,120]
[403801917,1769545635625,-558.61563534,0.00043367,120]
[403801918,1769545635691,-518.7025381,0.00043367,120]
[403801919,1769545635760,-510.00970933,0.00043367,120]
[403801920,1769545635833,-500.0,0.00043367,120]
[403801921,1769545635900,-500.0,0.00043367,120]
[403801922,1769545635970,-500.0,0.00043367,120]
[403801923,1769545636036,-500.0,0.00043367,120]
[403801924,1769545636103,-551.35879688,0.00043367,120]
[403801925,1769545636171,-500.0,0.00043367,120]
[403801926,1769545636239,-500.0,0.00043367,120]
[403801927,1769545636315,-535.56743508,0.00043367,120]
[403801928,1769545636387,-500.0,0.00043367,120]
[403801929,1769545636452,-500.0,0.00043367,120]
[403801930,1769545636518,-533.38325715,0.00043367,120]
[403801931,1769545636587,-203.95738933,0.00043367,120]
[403801932,1769545636654,-500.0,0.00043367,120]
[403801933,1769545636721,-500.0,0.00043367,120]
[403801934,1769545636787,-500.0,0.00043367,120]
[403801935,1769545636852,-500.0,0.00043367,120]
[403801936,1769545636918,-523.40749008,0.00043367,120]
[403801937,1769545636983,-500.0,0.00043367,120]
[403801938,1769545637049,-500.0,0.00043367,120]
[403801939,1769545637115,-500.0,0.00043367,120]
[403801940,1769545637181,-528.53341638,0.00043367,120]
[403801941,1769545637252,-500.0,0.00043367,120]
[403801942,1769545637319,-500.0,0.00043367,120]
[403801943,1769545637385,-500.0,0.00043367,120]
[403801944,1769545637451,-500.0,0.00043367,120]
[403801945,1769545637517,-500.0,0.00043367,120]
[403801946,1769545637583,-555.30029351,0.00043367,120]
[403801947,1769545637651,-500.0,0.00043367,120]
[403801948,1769545637723,-551.7509073,0.00043367,120]
[403801949,1769545637793,-500.0,0.00043367,120]
[403801950,1769545637863,-500.0,0.00043367,120]
[403801951,1769545637931,-500.0,0.00043367,120]
[403801952,1769545637999,-500.0,0.00043367,120]
[403801953,1769545638067,-500.0,0.00043367,120]
[403801954,1769545638135,-512.24278858,0.00043367,120]
[403801955,1769545638200,-526.28617501,0.00043367,120]
[403801956,1769545638264,-500.0,0.00043367,120]
[403801957,1769545638328,-500.0,0.00043367,120]
[403801958,1769545638391,-500.0,0.00043367,120]
[403801959,1769545638455,-500.0,0.00043367,120]
[403801960,1769545638518,-500.0,0.00043367,120]
[403801961,1769545638582,-300.76197519,0.00043367,120]
[403801962,1769545638648,-500.0,0.00043367,120]
[403801963,1769545638714,-500.0,0.00043367,120]
[403801964,1769545638780,-500.0,0.00043367,120]
[403801965,1769545638845,-500.0,0.00043367,120]
[403801966,1769545638911,-500.0,0.00043367,120]
[403801967,1769545638976,-502.67718033,0.00043367,120]
[403801968,1769545639041,-505.66208167,0.00043367,120]
[403801969,1769545639108,-356.41979743,0.00043367,120]
[403801970,1769545639172,-500.0,0.00043367,120]
[403801971,1769545639240,-554.39544415,0.00043367,120]
[403801972,1769545639304,-500.0,0.00043367,120]
[403801973,1769545639372,-500.0,0.00043367,120]
[403801974,1769545639439,-500.0,0.00043367,120]
[403801975,1769545639502,-500.0,0.00043367,120]
[403801976,1769545639565,-500.0,0.00043367,120]
[403801977,1769545639630,-500.0,0.00043367,120]
[403801978,1769545639696,-500.0,0.00043367,120]
[403801979,1769545639761,-500.0,0.00043367,120]
[403801980,1769545639826,-500.0,0.00043367,120]
[403801981,1769545640188,-532.00973883,0.00043367,120]
[403801982,1769545640284,-510.58108528,0.00043367,120]
[403801983,1769545640347,-500.0,0.00043367,120]
[403801984,1769545640410,-500.0,0.00043367,120]
[403801985,1769545640474,-500.0,0.00043367,120]
[403801986,1769545640539,-568.5370657,0.00043367,120]
[403801987,1769545640604,-529.71047035,0.00043367,120]
[403801988,1769545640669,-503.85558926,0.00043367,120]
[403801989,1769545640734,-500.0,0.00043367,120]
[403801990,1769545640798,-500.0,0.00043367,120]
[403801991,1769545640865,-500.0,0.00043367,120]
[403801992,1769545640939,-517.40848044,0.00043367,120]
[403801993,1769545641011,-500.0,0.00043367,120]
[403801994,1769545641080,-514.1872478,0.00043367,120]
[403801995,1769545641145,-500.0,0.00043367,120]
[403801996,1769545641210,-500.0,0.00043367,120]
[403801997,1769545641275,-500.0,0.00043367,120]
[403801998,1769545641342,-500.0,0.00043367,120]
[403801999,1769545641407,-500.0,0.00043367,120]
[403802000,1769545641472,-500.0,0.00043367,120]
[403802001,1769545641538,-562.52036427,0.00043367,120]
[403802002,1769545641605,-500.0,0.00043367,120]
[403802003,1769545641672,-542.17820675,0.00043367,120]
[403802004,1769545641740,-500.0,0.00043367,120]
[403802005,1769545641810,-502.27539996,0.00043367,120]
[403802006,1769545641893,-500.0,0.00043367,120]
[403802007,1769545641971,-500.0,0.00043367,120]
[403802008,1769545642042,-526.93875548,0.00043367,120]
[403802009,1769545642113,-500.0,0.00043367,120]
[403802010,1769545642188,-500.0,0.00043367,120]
[403802011,1769545642261,-512.65136706,0.00043367,120]
[403802012,1769545642330,-500.0,0.00043367,120]
[403802013,1769545642399,-500.0,0.00043367,120]
[403802014,1769545642468,-500.0,0.00043367,120]
[403802015,1769545642535,-181.71498142,0.00043367,120]
[403802016,1769545642606,-525.66730644,0.00043367,120]
[403802017,1769545642674,-500.0,0.00043367,120]
[403802018,1769545642743,-500.0,0.00043367,120]
[403802019,1769545642812,-507.76273304,0.00043367,120]
[403802020,1769545642881,-501.61757743,0.00043367,120]
[403802021,1769545642955,-534.08279136,0.00043367,120]
[403802022,1769545643025,-500.0,0.00043367,120]
[403802023,1769545643095,-500.0,0.00043367,120]
[403802024,1769545643164,-500.0,0.00043367,120]
[403802025,1769545643237,-510.3923294,0.00043367,120]
[403802026,1769545643306,-500.0,0.00043367,120]
[403802027,1769545643374,-500.0,0.00043367,120]
[403802028,1769545643447,-262.89803311,0.00043367,120]
[403802029,1769545643515,-500.0,0.00043367,120]
[403802030,1769545643583,-286.02888692,0.00043367,120]
[403802031,1769545643651,-500.0,0.00043367,120]
[403802032,1769545643721,-517.37885797,0.00043367,120]
[403802033,1769545643790,-500.0,0.00043367,120]
[403802034,1769545643862,-500.0,0.00043367,120]
[403802035,1769545643935,-500.0,0.00043367,120]
[403802036,1769545644005,-500.0,0.00043367,120]
[403802037,1769545644074,-500.0,0.00043367,120]
[403802038,1769545644141,-500.0,0.00043367,120]
[403802039,1769545644207,-500.0,0.00043367,120]
[403802040,1769545644274,-520.45,0.00043367,120]
[403802041,1769545644346,-528.11233407,0.00043367,120]
[403802042,1769545644410,-500.0,0.00043367,120]
[403802043,1769545644474,-513.22481448,0.00043367,120]
[403802044,1769545644539,-354.29439182,0.00043367,120]
[403802045,1769545644605,-500.0,0.00043367,120]
[403802046,1769545644671,-505.22741263,0.00043367,120]
[403802047,1769545644744,-500.0,0.00043367,120]
[403802048,1769545644818,-209.10465811,0.00043367,120]
[403802049,1769545644889,-500.0,0.00043367,120]
[403802050,1769545644956,-500.0,0.00043367,120]
[403802051,1769545645022,-507.40207329,0.00043367,120]
[403802052,1769545645088,-500.0,0.00043367,120]
[403802053,1769545645155,-500.0,0.00043367,120]
[403802054,1769545645221,-439.12898255,0.00043367,120]
[403802055,1769545645289,-502.95255672,0.00043367,120]
[403802056,1769545645357,-500.0,0.00043367,120]
[403802057,1769545645422,-500.0,0.00043367,120]
[403802058,1769545645488,-500.0,0.00043367,120]
[403802059,1769545645553,-500.0,0.00043367,120]
[403802060,1769545645618,-500.0,0.00043367,120]
[403802061,1769545645683,-500.0,0.00043367,120]
[403802062,1769545645752,-564.46197938,0.00043367,120]
[403802063,1769545645819,-537.1774205,0.00043367,120]
[403802064,1769545645887,-500.83922803,0.00043367,120]
[403802065,1769545645953,-500.0,0.00043367,120]
[403802066,1769545646020,-500.0,0.00043367,120]
[403802067,1769545646087,-500.0,0.00043367,120]
[403802068,1769545646152,-507.14114852,0.00043367,120]
[403802069,1769545646218,-228.26980844,0.00043367,120]
[403802070,1769545646284,-231.8892,0.00043367,120]
[403802071,1769545646347,-500.0,0.00043367,120]
[403802072,1769545646412,-500.0,0.00043367,120]
[403802073,1769545646476,-530.17601465,0.00043367,120]
[403802074,1769545646540,-362.43953393,0.00043367,120]
[403802075,1769545646606,-500.0,0.00043367,120]
[403802076,1769545646672,-500.0,0.00043367,120]
[403802077,1769545647018,-500.0,0.00043367,120]
[403802078,1769545647083,-500.0,0.00043367,120]
[403802079,1769545647150,-536.59936568,0.00043367,120]
[403802080,1769545647218,-500.0,0.00043367,120]
[403802081,1769545647286,-500.0,0.00043367,120]
[403802082,1769545647351,-503.05192167,0.00043367,120]
[403802083,1769545647416,-500.0,0.00043367,120]
[403802084,1769545647480,-503.07205369,0.00043367,120]
[403802085,1769545647546,-500.0,0.00043367,120]
[403802086,1769545647612,-500.0,0.00043367,120]
[403802087,1769545647679,-502.87093129,0.00043367,120]
[403802088,1769545647745,-510.36988434,0.00043367,120]
[403802089,1769545647811,-519.71901438,0.00043367,120]
[403802090,1769545647876,-504.94191605,0.00043367,120]
[403802091,1769545647947,-500.0,0.00043367,120]
[403802092,1769545648015,-500.0,0.00043367,120]
[403802093,1769545648084,-500.0,0.00043367,120]
[403802094,1769545648148,-500.0,0.00043367,120]
[403802095,1769545648216,-500.0,0.00043367,120]
[403802096,1769545648282,-500.0,0.00043367,120]
[403802097,1769545648346,-500.0,0.00043367,120]
[403802098,1769545648409,-500.0,0.00043367,120]
[403802099,1769545648473,-512.92016887,0.00043367,120]
[403802100,1769545648536,-535.19303618,0.00043367,120]
[403802101,1769545648600,-500.0,0.00043367,120]
[403802102,1769545648663,-500.0,0.00043367,120]
[403802103,1769545648728,-533.70005087,0.00043367,120]
[403802104,1769545648795,-500.0,0.00043367,120]
[403802105,1769545648859,-500.0,0.00043367,120]
[403802106,1769545648921,-500.0,0.00043367,120]
[403802107,1769545648986,-512.24640557,0.00043367,120]
[403802108,1769545649052,-500.0,0.00043367,120]
[403802109,1769545649116,-500.0,0.00043367,120]
[403802110,1769545649180,-500.0,0.00043367,120]
[403802111,1769545649245,-509.31229271,0.00043367,120]
[403802112,1769545649308,-500.0,0.00043367,120]
[403802113,1769545649374,-500.0,0.00043367,120]
[403802114,1769545649439,-533.35471982,0.00043367,120]
[403802115,1769545649504,-500.0,0.00043367,120]
[403802116,1769545649567,-500.0,0.00043367,120]
[403802117,1769545649631,-545.53228831,0.00043367,120]
[403802118,1769545649695,-500.0,0.00043367,120]
[403802119,1769545649760,-500.0,0.00043367,120]
[403802120,1769545649826,-500.0,0.00043367,120]
[403802121,1769545649893,-500.0,0.00043367,120]
[403802122,1769545649958,-500.0,0.00043367,120]
[403802123,1769545650022,-500.0,0.00043367,120]
[403802124,1769545650087,-500.0,0.00043367,120]
[403802125,1769545650153,-512.77902743,0.00043367,120]
[403802126,1769545650218,-526.57305243,0.00043367,120]
[403802127,1769545650283,-500.0,0.00043367,120]
[403802128,1769545650346,-500.0,0.00043367,120]
[403802129,1769545650410,-500.0,0.00043367,120]
[403802130,1769545650473,-500.0,0.00043367,120]
[403802131,1769545650537,-500.0,0.00043367,120]
[403802132,1769545650601,-500.0,0.00043367,120]
[403802133,1769545650664,-500.0,0.00043367,120]
[403802134,1769545650728,-508.80350917,0.00043367,120]
[403802135,1769545650794,-513.02898633,0.00043367,120]
[403802136,1769545650858,-500.0,0.00043367,120]
[403802137,1769545650921,-500.0,0.00043367,120]
[403802138,1769545650991,-500.0,0.00043367,120]
[403802139,1769545651058,-506.38821743,0.00043367,120]
[403802140,1769545651125,-500.0,0.00043367,120]
[403802141,1769545651190,-500.0,0.00043367,120]
[403802142,1769545651258,-500.0,0.00043367,120]
[403802143,1769545651321,-530.23748492,0.00043367,120]
[403802144,1769545651382,-500.0,0.00043367,120]
[403802145,1769545651447,-500.0,0.00043367,120]
[403802146,1769545651509,-509.09808742,0.00043367,120]
[403802147,1769545651572,-500.0,0.00043367,120]
[403802148,1769545651636,-500.0,0.00043367,120]
[403802149,1769545651702,-500.0,0.00043367,120]
[403802150,1769545651768,-522.54532869,0.00043367,120]
[403802151,1769545651832,-500.0,0.00043367,120]
[403802152,1769545651900,-502.37706025,0.00043367,120]
[403802153,1769545651969,-500.0,0.00043367,120]
[403802154,1769545652034,-500.0,0.00043367,120]
[403802155,1769545652097,-500.0,0.00043367,120]
[403802156,1769545652159,-500.0,0.00043367,120]
[403802157,1769545652223,-500.0,0.00043367,120]
[403802158,1769545652292,-500.0,0.00043367,120]
[403802159,1769545652355,-500.0,0.00043367,120]
[403802160,1769545652419,-517.78071587,0.00043367,120]
[403802161,1769545652487,-506.95083749,0.00043367,120]
[403802162,1769545652556,-500.0,0.00043367,120]
[403802163,1769545652620,-500.0,0.00043367,120]
[403802164,1769545652685,-500.0,0.00043367,120]
[403802165,1769545652752,-280.20472572,0.00043367,120]
[403802166,1769545652820,-500.0,0.00043367,120]
[403802167,1769545652888,-500.0,0.00043367,120]
[403802168,1769545652955,-500.0,0.00043367,120]
[403802169,1769545653020,-500.0,0.00043367,120]
[403802170,1769545653086,-500.0,0.00043367,120]
[403802171,1769545653152,-508.84550508,0.00043367,120]
[403802172,1769545653462,-500.0,0.00043367,120]
[403802173,1769545653530,-500.0,0.00043367,120]
[403802174,1769545653598,-500.0,0.00043367,120]
[403802175,1769545653671,-500.0,0.00043367,120]
[403802176,1769545653742,-500.0,0.00043367,120]
[403802177,1769545653813,-500.0,0.00043367,120]
[403802178,1769545653881,-500.0,0.00043367,120]
[403802179,1769545653950,-500.0,0.00043367,120]
[403802180,1769545654018,-240.64833808,0.00043367,120]
[403802181,1769545654086,-508.37251908,0.00043367,120]
[403802182,1769545654152,-543.09372515,0.00043367,120]
[403802183,1769545654216,-500.0,0.00043367,120]
[403802184,1769545654282,-500.0,0.00043367,120]
[403802185,1769545654349,-506.16583693,0.00043367,120]
[403802186,1769545654415,-500.0,0.00043367,120]
[403802187,1769545654479,-500.0,0.00043367,120]
[403802188,1769545654543,-500.0,0.00043367,120]
[403802189,1769545654609,-500.0,0.00043367,120]
[403802190,1769545654672,-500.0,0.00043367,120]
[403802191,1769545654738,-500.0,0.00043367,120]
[403802192,1769545654804,-500.0,0.00043367,120]
[403802193,1769545654867,-500.0,0.00043367,120]
[403802194,1769545654931,-515.45341098,0.00043367,120]
[403802195,1769545654997,-246.83616051,0.00043367,120]
[403802196,1769545655063,-500.0,0.00043367,120]
[403802197,1769545655126,-500.0,0.00043367,120]
[403802198,1769545655190,-500.0,0.00043367,120]
[403802199,1769545655254,-500.0,0.00043367,120]
[403802200,1769545655321,-178.93633664,0.00043367,120]
[403802201,1769545655386,-197.79525632,0.00043367,120]
[403802202,1769545655453,-528.57146531,0.00043367,120]
[403802203,1769545655520,-500.0,0.00043367,120]
[403802204,1769545655587,-414.29702956,0.00043367,120]
[403802205,1769545655653,-500.0,0.00043367,120]
[403802206,1769545655718,-500.0,0.00043367,120]
[403802207,1769545655785,-500.0,0.00043367,120]
[403802208,1769545655850,-500.0,0.00043367,120]
[403802209,1769545655916,-444.04173914,0.00043367,120]
[403802210,1769545655982,-525.25911743,0.00043367,120]
[403802211,1769545656049,-500.0,0.00043367,120]
[403802212,1769545656115,-500.0,0.00043367,120]
[403802213,1769545656180,-500.0,0.00043367,120]
[403802214,1769545656248,-500.0,0.00043367,120]
[403802215,1769545656314,-500.0,0.00043367,120]
[403802216,1769545656378,-500.0,0.00043367,120]
[403802217,1769545656441,-500.0,0.00043367,120]
[403802218,1769545656504,-500.0,0.00043367,120]
[403802219,1769545656569,-500.0,0.00043367,120]
[403802220,1769545656635,-500.0,0.00043367,120]
[403802221,1769545656702,-500.0,0.00043367,120]
[403802222,1769545656767,-500.0,0.00043367,120]
[403802223,1769545656832,-550.69229169,0.00043367,120]
[403802224,1769545656896,-500.0,0.00043367,120]
[403802225,1769545656963,-379.73547355,0.00043367,120]
[403802226,1769545657029,-500.0,0.00043367,120]
[403802227,1769545657096,-500.0,0.00043367,120]
[403802228,1769545657163,-546.31775644,0.00043367,120]
[403802229,1769545657227,-500.0,0.00043367,120]
[403802230,1769545657296,-500.0,0.00043367,120]
[403802231,1769545657359,-500.0,0.00043367,120]
[403802232,1769545657423,-500.0,0.00043367,120]
[403802233,1769545657487,-505.04817678,0.00043367,120]
[403802234,1769545657551,-500.0,0.00043367,120]
[403802235,1769545657614,-500.0,0.00043367,120]
[403802236,1769545657678,-500.0,0.00043367,120]
[403802237,1769545657746,-513.49645097,0.00043367,120]